fUSD/lending_fUSD_20260612
["ID","MTS","AMOUNT","RATE_DAILY","PERIOD"]
[424874449,1781223043000,-480.0,0.00020254,2]
[424874454,1781223043000,-179.080074,0.0002058,2]
[424874456,1781223043000,-150.0,0.0002058,2]
[424874464,1781223043000,-2236.95670847,0.00020926,2]
[424874460,1781223043000,-179.080073,0.00020721,2]
[424874466,1781223043000,-157.0,0.00021,2]
[424874468,1781223043000,-162.0,0.00021,2]
[424874467,1781223043000,-159.0,0.00021,2]
[424874434,1781223043000,-151.0,0.0002,2]
[424874458,1781223043000,-151.29325014,0.0002058,2]
[424874439,1781223043000,-415.0,0.0002,2]
[424874453,1781223043000,-150.0,0.0002058,2]
[424874445,1781223043000,-161.0,0.0002,2]
[424874450,1781223043000,-153.6,0.00020321,2]
[424874435,1781223043000,-155.0,0.0002,2]
[424874437,1781223043000,-151.0,0.0002,2]
[424874423,1781223043000,-151.0,0.0001983,2]
[424874433,1781223043000,-151.0,0.0001983,2]
[424874425,1781223043000,-151.0,0.0001983,2]
[424874430,1781223043000,-151.0,0.0001983,2]
[424874431,1781223043000,-151.0,0.0001983,2]
[424874428,1781223043000,-151.0,0.0001983,2]
[424874426,1781223043000,-151.0,0.0001983,2]
[424874438,1781223043000,-151.0,0.0002,2]
[424874444,1781223043000,-154.0,0.0002,2]
[424874442,1781223043000,-238.0,0.0002,2]
[424874440,1781223043000,-426.0,0.0002,2]
[424874441,1781223043000,-157.0,0.0002,2]
[424874446,1781223043000,-504.0,0.0002,2]
[424874432,1781223043000,-151.0,0.0001983,2]
[424874443,1781223043000,-662.0,0.0002,2]
[424874507,1781223044000,-215.95576085,0.00022699,2]
[424874503,1781223044000,-500.0,0.00022384,2]
[424874505,1781223044000,-150.0,0.0002254,2]
[424874506,1781223044000,-2494.55939288,0.0002257,2]
[424874504,1781223044000,-150.34,0.000225,7]
[424874493,1781223044000,-426.0,0.00022,2]
[424874500,1781223044000,-2405.55389863,0.00022022,2]
[424874497,1781223044000,-152.0,0.00022,2]
[424874501,1781223044000,-504.0,0.00022069,4]
[424874496,1781223044000,-154.0,0.00022,2]
[424874502,1781223044000,-357.4,0.00022353,2]
[424874509,1781223044000,-1001.98149375,0.00023,2]
[424874521,1781223044000,-2682.57183977,0.00023666,2]
[424874510,1781223044000,-500.0,0.00023,3]
[424874511,1781223044000,-168.0,0.00023,2]
[424874512,1781223044000,-415.0,0.00023,2]
[424874522,1781223044000,-150.0,0.00023667,2]
[424874518,1781223044000,-237.0,0.00023,2]
[424874516,1781223044000,-154.0,0.00023,2]
[424874513,1781223044000,-426.0,0.00023,2]
[424874515,1781223044000,-662.0,0.00023,2]
[424874520,1781223044000,-2586.85809042,0.00023118,2]
[424874514,1781223044000,-238.0,0.00023,2]
[424874494,1781223044000,-238.0,0.00022,2]
[424874508,1781223044000,-3050.49866968,0.0002292,2]
[424874495,1781223044000,-662.0,0.00022,2]
[424874474,1781223044000,-238.0,0.00021,2]
[424874498,1781223044000,-557.86,0.00022,2]
[424874469,1781223044000,-151.0,0.00021,2]
[424874477,1781223044000,-152.0,0.00021,2]
[424874472,1781223044000,-426.0,0.00021,2]
[424874471,1781223044000,-415.0,0.00021,2]
[424874470,1781223044000,-151.0,0.00021,2]
[424874473,1781223044000,-164.80496035,0.00021,2]
[424874475,1781223044000,-662.0,0.00021,2]
[424874517,1781223044000,-169.0,0.00023,2]
[424874476,1781223044000,-154.0,0.00021,2]
[424874479,1781223044000,-504.0,0.00021034,3]
[424874478,1781223044000,-237.0,0.00021,2]
[424874492,1781223044000,-415.0,0.00022,2]
[424874480,1781223044000,-315.673007,0.00021172,7]
[424874482,1781223044000,-242.192364,0.00021409,7]
[424874484,1781223044000,-2319.72410669,0.00021474,2]
[424874487,1781223044000,-500.0,0.00022,3]
[424874486,1781223044000,-500.0,0.00022,3]
[424874483,1781223044000,-8424.6426,0.00021431,7]
[424874485,1781223044000,-5000.0,0.00021918,2]
[424874489,1781223044000,-500.0,0.00022,3]
[424874499,1781223044000,-237.0,0.00022,2]
[424874491,1781223044000,-151.0,0.00022,2]
[424874488,1781223044000,-500.0,0.00022,3]
[424874490,1781223044000,-161.0,0.00022,2]
[424874481,1781223044000,-152.0,0.00021378,2]
[424874523,1781223044000,-415.0,0.00024,2]
[424874519,1781223044000,-504.0,0.00023103,5]
[424874525,1781223044000,-238.0,0.00024,2]
[424874551,1781223044000,-1340.83,0.00025786,2]
[424874550,1781223044000,-2991.49051684,0.0002531,2]
[424874557,1781223044000,-295.39502125,0.00025922,4]
[424874556,1781223044000,-306.36434807,0.00025922,2]
[424874562,1781223044000,-357.4,0.00026296,2]
[424874559,1781223044000,-150.0,0.00026093,2]
[424874558,1781223044000,-1253.37222042,0.00025922,2]
[424874564,1781223044000,-500.0,0.00026562,2]
[424874563,1781223044000,-301.97830026,0.00026425,2]
[424874560,1781223044000,-504.0,0.00026207,8]
[424874561,1781223044000,-500.0,0.00026277,2]
[424874567,1781223044000,-158.55225597,0.00026696,2]
[424874566,1781223044000,-500.0,0.00026562,2]
[424874568,1781223044000,-155.73201421,0.00026696,2]
[424874569,1781223044000,-3050.49866968,0.00026872,2]
[424874572,1781223044000,-170.09130571,0.00027333,7]
[424874573,1781223044000,-205.99301303,0.00027344,7]
[424874570,1781223044000,-500.0,0.00027065,2]
[424874571,1781223044000,-504.0,0.00027241,9]
[424874574,1781223044000,-169.72761244,0.00027344,7]
[424874576,1781223044000,-172.32494214,0.00027344,7]
[424874575,1781223044000,-168.27850634,0.00027344,7]
[424874577,1781223044000,-202.33975155,0.00027344,2]
[424874578,1781223044000,-168.36175034,0.00027344,7]
[424874526,1781223044000,-662.0,0.00024,2]
[424874552,1781223044000,-15627.76,0.00025786,2]
[424874553,1781223044000,-470.93,0.00025786,2]
[424874565,1781223044000,-500.0,0.00026562,2]
[424874554,1781223044000,-836.36,0.00025786,2]
[424874555,1781223044000,-177.0,0.00025846,2]
[424874527,1781223044000,-154.0,0.00024,2]
[424874529,1781223044000,-504.0,0.00024138,6]
[424874532,1781223044000,-470.93,0.00024174,2]
[424874531,1781223044000,-15627.76,0.00024174,2]
[424874530,1781223044000,-1340.83,0.00024174,2]
[424874528,1781223044000,-237.0,0.00024,2]
[424874533,1781223044000,-836.36,0.00024174,2]
[424874535,1781223044000,-357.4,0.00024324,2]
[424874534,1781223044000,-2781.82699784,0.00024214,2]
[424874540,1781223044000,-150.0,0.0002485,2]
[424874544,1781223044000,-442.0,0.00025,2]
[424874524,1781223044000,-426.0,0.00024,2]
[424874538,1781223044000,-557.86,0.00024713,7]
[424874541,1781223044000,-3050.49866968,0.00024896,2]
[424874547,1781223044000,-158.0,0.00025,2]
[424874548,1781223044000,-237.0,0.00025,2]
[424874549,1781223044000,-504.0,0.00025172,7]
[424874545,1781223044000,-252.0,0.00025,2]
[424874543,1781223044000,-417.0,0.00025,2]
[424874546,1781223044000,-666.0,0.00025,2]
[424874542,1781223044000,-3185.8786834,0.00025,2]
[424874537,1781223044000,-172.14,0.00024658,2]
[424874536,1781223044000,-1000.0,0.00024658,2]
[424874539,1781223044000,-2884.75459676,0.00024762,2]
[424874612,1781223045000,-230.74,0.00027672,7]
[424874620,1781223045000,-455.36,0.00027712,7]
[424874611,1781223045000,-230.37,0.00027641,2]
[424874609,1781223045000,-230.37,0.00027611,30]
[424874614,1781223045000,-230.74,0.00027702,30]
[424874616,1781223045000,-320.83,0.00027711,7]
[424874617,1781223045000,-618.07,0.00027711,7]
[424874618,1781223045000,-317.78,0.00027711,7]
[424874608,1781223045000,-230.74,0.00027611,30]
[424874619,1781223045000,-613.4,0.00027711,7]
[424874615,1781223045000,-230.37,0.00027702,30]
[424874624,1781223045000,-230.74,0.00027763,7]
[424874630,1781223045000,-230.74,0.00027855,7]
[424874622,1781223045000,-230.74,0.00027733,2]
[424874621,1781223045000,-449.79,0.00027712,7]
[424874625,1781223045000,-230.37,0.00027763,7]
[424874627,1781223045000,-230.37,0.00027794,30]
[424874628,1781223045000,-230.74,0.00027824,2]
[424874626,1781223045000,-230.74,0.00027794,30]
[424874631,1781223045000,-230.37,0.00027855,7]
[424874629,1781223045000,-230.37,0.00027824,2]
[424874635,1781223045000,-613.4,0.00027872,2]
[424874634,1781223045000,-317.78,0.00027872,2]
[424874632,1781223045000,-320.83,0.00027872,2]
[424874607,1781223045000,-150.34,0.000276,7]
[424874623,1781223045000,-230.37,0.00027733,2]
[424874606,1781223045000,-230.37,0.0002758,7]
[424874582,1781223045000,-186.37294054,0.00027344,7]
[424874604,1781223045000,-236.0,0.00027569,2]
[424874633,1781223045000,-618.07,0.00027872,2]
[424874581,1781223045000,-208.54821872,0.00027344,7]
[424874586,1781223045000,-1500.0,0.00027397,2]
[424874579,1781223045000,-154.56851791,0.00027344,7]
[424874587,1781223045000,-300.0,0.00027397,2]
[424874583,1781223045000,-500.0,0.00027359,2]
[424874580,1781223045000,-151.01096197,0.00027344,7]
[424874584,1781223045000,-500.0,0.00027359,2]
[424874585,1781223045000,-500.0,0.00027359,2]
[424874599,1781223045000,-317.78,0.0002755,30]
[424874589,1781223045000,-7197.32,0.00027397,10]
[424874601,1781223045000,-230.37,0.0002755,2]
[424874613,1781223045000,-230.37,0.00027672,7]
[424874600,1781223045000,-613.4,0.0002755,30]
[424874590,1781223045000,-5997.76,0.00027397,10]
[424874591,1781223045000,-152.03697455,0.00027397,7]
[424874596,1781223045000,-320.83,0.0002755,30]
[424874594,1781223045000,-557.86,0.00027427,7]
[424874592,1781223045000,-150.0,0.00027398,2]
[424874595,1781223045000,-500.0,0.000275,7]
[424874593,1781223045000,-160.31,0.000274,7]
[424874598,1781223045000,-618.07,0.0002755,30]
[424874597,1781223045000,-230.74,0.0002755,2]
[424874602,1781223045000,-455.36,0.00027552,30]
[424874603,1781223045000,-449.79,0.00027552,30]
[424874605,1781223045000,-230.74,0.0002758,7]
[424874588,1781223045000,-8636.78,0.00027397,10]
[424874637,1781223045000,-449.79,0.00027873,2]
[424874610,1781223045000,-230.74,0.00027641,2]
[424874636,1781223045000,-455.36,0.00027873,2]
[424874666,1781223045000,-500.0,0.0002818,16]
[424874668,1781223045000,-618.07,0.00028194,7]
[424874670,1781223045000,-613.4,0.00028194,7]
[424874672,1781223045000,-449.79,0.00028195,7]
[424874675,1781223045000,-160.31,0.000283,7]
[424874676,1781223045000,-340.18261142,0.00028625,7]
[424874673,1781223045000,-357.4,0.00028267,2]
[424874679,1781223045000,-344.64988427,0.00028636,7]
[424874677,1781223045000,-411.98602605,0.00028636,7]
[424874678,1781223045000,-339.45522488,0.00028636,7]
[424874680,1781223045000,-336.55701268,0.00028636,7]
[424874681,1781223045000,-163.46200504,0.00028636,7]
[424874669,1781223045000,-317.78,0.00028194,7]
[424874682,1781223045000,-189.92424285,0.00028636,7]
[424874694,1781223045000,-2847.32,0.00028826,2]
[424874685,1781223045000,-309.13703581,0.00028636,7]
[424874695,1781223045000,-860.78,0.00028826,2]
[424874687,1781223045000,-417.09643745,0.00028636,7]
[424874686,1781223045000,-302.02192394,0.00028636,7]
[424874684,1781223045000,-336.72350067,0.00028636,7]
[424874692,1781223045000,-3000.0,0.00028826,2]
[424874693,1781223045000,-3000.0,0.00028826,2]
[424874688,1781223045000,-372.74588107,0.00028636,7]
[424874690,1781223045000,-150.0,0.00028767,2]
[424874691,1781223045000,-301.32,0.00028826,2]
[424874648,1781223045000,-320.83,0.00028033,30]
[424874683,1781223045000,-404.67950311,0.00028636,2]
[424874664,1781223045000,-230.56,0.0002813,7]
[424874674,1781223045000,-504.0,0.00028276,10]
[424874667,1781223045000,-320.83,0.00028194,7]
[424874647,1781223045000,-230.37,0.00028007,2]
[424874665,1781223045000,-500.0,0.0002818,16]
[424874638,1781223045000,-230.74,0.00027885,30]
[424874646,1781223045000,-230.74,0.00028007,2]
[424874639,1781223045000,-230.37,0.00027885,30]
[424874641,1781223045000,-230.37,0.00027916,2]
[424874642,1781223045000,-230.74,0.00027946,7]
[424874643,1781223045000,-230.37,0.00027946,7]
[424874640,1781223045000,-230.74,0.00027916,2]
[424874645,1781223045000,-230.37,0.00027977,30]
[424874649,1781223045000,-618.07,0.00028033,30]
[424874653,1781223045000,-449.79,0.00028034,30]
[424874652,1781223045000,-455.36,0.00028034,30]
[424874651,1781223045000,-613.4,0.00028033,30]
[424874644,1781223045000,-230.74,0.00027977,30]
[424874662,1781223045000,-150.0,0.00028101,2]
[424874650,1781223045000,-317.78,0.00028033,30]
[424874660,1781223045000,-157.14213509,0.00028101,2]
[424874671,1781223045000,-455.36,0.00028195,7]
[424874689,1781223045000,-304.0739491,0.00028636,7]
[424874656,1781223045000,-230.74,0.00028068,30]
[424874661,1781223045000,-174.98940847,0.00028101,2]
[424874659,1781223045000,-230.37,0.00028099,2]
[424874655,1781223045000,-230.37,0.00028038,7]
[424874657,1781223045000,-230.37,0.00028068,30]
[424874658,1781223045000,-230.74,0.00028099,2]
[424874654,1781223045000,-230.74,0.00028038,7]
[424874663,1781223045000,-230.89,0.0002813,7]
[424874732,1781223046000,-504.83551902,0.00029497,7]
[424874737,1781223046000,-607.01925466,0.00029497,2]
[424874738,1781223046000,-505.08525101,0.00029497,7]
[424874740,1781223046000,-198.36476642,0.00029497,7]
[424874727,1781223046000,-510.27391713,0.00029487,7]
[424874734,1781223046000,-207.178928,0.00029497,5]
[424874733,1781223046000,-516.97482641,0.00029497,7]
[424874729,1781223046000,-242.81820882,0.00029497,7]
[424874735,1781223046000,-326.92401008,0.00029497,7]
[424874731,1781223046000,-509.18283733,0.00029497,7]
[424874739,1781223046000,-247.42429171,0.00029497,7]
[424874725,1781223046000,-295.0,0.00029293,2]
[424874746,1781223046000,-151.4770914,0.00029497,7]
[424874757,1781223046000,-593.37824844,0.000299,2]
[424874745,1781223046000,-190.28157863,0.00029497,7]
[424874741,1781223046000,-205.40773364,0.00029497,7]
[424874747,1781223046000,-559.11882161,0.00029497,7]
[424874742,1781223046000,-463.70555372,0.00029497,7]
[424874744,1781223046000,-625.64465617,0.00029497,7]
[424874748,1781223046000,-211.25981778,0.00029497,7]
[424874758,1781223046000,-593.37824844,0.000299,2]
[424874751,1781223046000,-199.02709662,0.00029497,7]
[424874750,1781223046000,-240.86109358,0.00029497,7]
[424874752,1781223046000,-456.11092366,0.00029497,7]
[424874754,1781223046000,-593.37824844,0.000299,2]
[424874730,1781223046000,-617.97903908,0.00029497,7]
[424874743,1781223046000,-453.03288592,0.00029497,7]
[424874728,1781223046000,-236.57814007,0.00029497,7]
[424874699,1781223046000,-233.36,0.00029,2]
[424874726,1781223046000,-504.0,0.0002931,11]
[424874753,1781223046000,-593.37824847,0.000299,2]
[424874696,1781223046000,-3050.49866968,0.00028848,2]
[424874700,1781223046000,-3000.0,0.00029,2]
[424874706,1781223046000,-233.36,0.00029,2]
[424874698,1781223046000,-301.15,0.00028971,30]
[424874697,1781223046000,-419.0,0.000289,2]
[424874705,1781223046000,-358.66,0.00029,2]
[424874708,1781223046000,-233.36,0.00029,2]
[424874703,1781223046000,-233.36,0.00029,2]
[424874701,1781223046000,-686.38,0.00029,2]
[424874709,1781223046000,-540.65875253,0.00029025,17]
[424874707,1781223046000,-233.36,0.00029,2]
[424874722,1781223046000,-158.0,0.00029145,30]
[424874721,1781223046000,-154.0,0.00029145,30]
[424874711,1781223046000,-151.0,0.00029145,30]
[424874715,1781223046000,-151.0,0.00029145,30]
[424874716,1781223046000,-415.0,0.00029145,30]
[424874710,1781223046000,-237.0,0.0002914,30]
[424874723,1781223046000,-152.0,0.00029145,30]
[424874714,1781223046000,-151.0,0.00029145,30]
[424874718,1781223046000,-157.0,0.00029145,30]
[424874713,1781223046000,-157.0,0.00029145,30]
[424874717,1781223046000,-426.0,0.00029145,30]
[424874712,1781223046000,-155.0,0.00029145,30]
[424874720,1781223046000,-662.0,0.00029145,30]
[424874719,1781223046000,-238.0,0.00029145,30]
[424874724,1781223046000,-500.0,0.00029288,2]
[424874736,1781223046000,-379.8484857,0.00029497,7]
[424874756,1781223046000,-593.37824844,0.000299,2]
[424874749,1781223046000,-208.97055616,0.00029497,7]
[424874761,1781223046000,-593.37824844,0.000299,2]
[424874787,1781223046000,-350.96231266,0.00030072,7]
[424874793,1781223046000,-330.70243617,0.00030072,7]
[424874795,1781223046000,-253.32091426,0.00030072,7]
[424874800,1781223046000,-673.11402536,0.00030072,7]
[424874810,1781223046000,-809.35900621,0.00030072,2]
[424874812,1781223046000,-292.74392776,0.00030072,7]
[424874817,1781223046000,-673.44700135,0.00030072,7]
[424874815,1781223046000,-201.15418835,0.00030072,7]
[424874819,1781223046000,-424.56355346,0.00030072,7]
[424874802,1781223046000,-689.29976855,0.00030072,7]
[424874808,1781223046000,-569.77272854,0.00030072,7]
[424874804,1781223046000,-414.35785599,0.00030072,5]
[424874806,1781223046000,-490.38601512,0.00030072,7]
[424874822,1781223046000,-494.84858342,0.00030072,7]
[424874826,1781223046000,-321.27317265,0.00030072,7]
[424874824,1781223046000,-396.72953284,0.00030072,7]
[424874833,1781223046000,-618.27407163,0.00030072,7]
[424874830,1781223046000,-410.81546729,0.00030072,7]
[424874831,1781223046000,-271.75815348,0.00030072,7]
[424874828,1781223046000,-427.33501934,0.00030072,7]
[424874835,1781223046000,-408.95943969,0.00030072,7]
[424874842,1781223046000,-221.93409433,0.00030072,7]
[424874838,1781223046000,-157.05731674,0.00030072,7]
[424874836,1781223046000,-425.24853701,0.00030072,7]
[424874845,1781223046000,-604.04384789,0.00030072,7]
[424874840,1781223046000,-371.43930954,0.00030072,7]
[424874755,1781223046000,-593.37824844,0.000299,2]
[424874794,1781223046000,-344.97576152,0.00030072,7]
[424874784,1781223046000,-500.0,0.00030068,30]
[424874792,1781223046000,-485.63641763,0.00030072,7]
[424874785,1781223046000,-213.66750967,0.00030072,7]
[424874759,1781223046000,-593.37824844,0.000299,2]
[424874763,1781223046000,-593.37824844,0.000299,2]
[424874762,1781223046000,-593.37824844,0.000299,2]
[424874764,1781223046000,-593.37824844,0.000299,2]
[424874765,1781223046000,-593.37824844,0.000299,2]
[424874767,1781223046000,-593.37824844,0.000299,2]
[424874766,1781223046000,-593.37824844,0.000299,2]
[424874760,1781223046000,-593.37824844,0.000299,2]
[424874769,1781223046000,-593.37824844,0.000299,2]
[424874768,1781223046000,-593.37824844,0.000299,2]
[424874798,1781223046000,-678.91044977,0.00030072,7]
[424874782,1781223046000,-500.0,0.00030068,30]
[424874772,1781223046000,-593.37824844,0.000299,2]
[424874774,1781223046000,-1540.09432815,0.00029955,7]
[424874770,1781223046000,-593.37824844,0.000299,2]
[424874773,1781223046000,-1049.90766312,0.00029955,7]
[424874796,1781223046000,-823.9720521,0.00030072,7]
[424874786,1781223046000,-436.49734419,0.00030072,7]
[424874771,1781223046000,-593.37824844,0.000299,2]
[424874790,1781223046000,-363.32176798,0.00030072,7]
[424874783,1781223046000,-500.0,0.00030068,30]
[424874780,1781223046000,-500.0,0.00030068,30]
[424874789,1781223046000,-473.15628014,0.00030072,7]
[424874779,1781223046000,-680.36522284,0.00030061,7]
[424874778,1781223046000,-200.0,0.0003,2]
[424874777,1781223046000,-1000.0,0.0003,2]
[424874781,1781223046000,-500.0,0.00030068,30]
[424874776,1781223046000,-160.31,0.0003,7]
[424874775,1781223046000,-26985.49117731,0.0003,5]
[424874880,1781223047000,-241.95466327,0.00022732,2]
[424874847,1781223047000,-834.19287489,0.00030072,7]
[424874850,1781223047000,-427.82696669,0.00030072,7]
[424874852,1781223047000,-302.95418279,0.00030072,7]
[424874849,1781223047000,-380.56315726,0.00030072,7]
[424874858,1781223047000,-138.24441758,0.00030072,7]
[424874854,1781223047000,-745.49176214,0.00030072,7]
[424874856,1781223047000,-179.09813948,0.00030072,7]
[424874877,1781223047000,-151.42,0.00017,2]
[424874892,1781223047000,-521.0,0.0002,2]
[424874894,1781223047000,-57.98293719,0.00029794,30]
[424874882,1781223047000,-602.89632619,0.00028231,5]
[424874898,1781223047000,-417.94111231,0.00030072,7]
[424874886,1781223047000,-500.0,0.00029794,30]
[424874884,1781223047000,-4834.10367381,0.00028231,5]
[424874889,1781223047000,-442.01706281,0.00029794,30]
[424874900,1781223047000,-354.98947477,0.00030072,7]
[424874902,1781223047000,-608.14789821,0.00030072,7]
[424874904,1781223047000,-1095.38748374,0.0003013,2]
[424874907,1781223047000,-2398.78130225,0.0003013,2]
[424874896,1781223047000,-284.27521797,0.00030072,7]
[424874929,1781223222000,166.66,0.00021919,30]
[424874930,1781223292000,-301.44,0.000132,2]
[424874931,1781223395000,1681.52067556,2.74e-05,2]
[424874932,1781223395000,43.47932444,2.74e-05,2]
[424874937,1781223649000,-205.99894037,0.00012402,2]
[424874940,1781224005000,-318.80104209,0.00012432,2]
[424874972,1781224232000,-448.0,0.00013216,2]
[424874981,1781224232000,-448.0,0.00013264,2]
[424874979,1781224232000,-152.0,0.00013248,2]
[424874983,1781224232000,-458.0,0.00013264,2]
[424874984,1781224232000,-152.0,0.00013287,2]
[424874987,1781224232000,-166.66,0.00013321,2]
[424874997,1781224232000,-453.0,0.00013471,2]
[424874989,1781224232000,-450.0,0.00013325,2]
[424874992,1781224232000,-457.0,0.00013325,2]
[424874995,1781224232000,-445.0,0.00013325,2]
[424875017,1781224232000,-301.44,0.00013855,2]
[424875003,1781224232000,-452.0,0.00013533,2]
[424875001,1781224232000,-445.0,0.00013471,2]
[424875005,1781224232000,-449.0,0.00013533,2]
[424875007,1781224232000,-166.66,0.00013602,2]
[424875015,1781224232000,-446.0,0.00013728,2]
[424874970,1781224232000,-445.0,0.00013208,2]
[424875012,1781224232000,-301.44,0.00013663,2]
[424875024,1781224232000,-166.66,0.00013882,2]
[424875020,1781224232000,-447.0,0.00013878,2]
[424875009,1781224232000,-447.0,0.00013617,2]
[424874999,1781224232000,-455.0,0.00013471,2]
[424874969,1781224232000,-459.0,0.00013208,2]
[424874963,1781224232000,-457.0,0.00013202,2]
[424874975,1781224232000,-449.0,0.00013232,2]
[424874949,1781224232000,-443.0,0.00013201,2]
[424874948,1781224232000,-154.98234114,0.00013101,2]
[424874961,1781224232000,-448.0,0.00013202,2]
[424874955,1781224232000,-452.0,0.00013201,2]
[424874957,1781224232000,-447.0,0.00013201,2]
[424874952,1781224232000,-458.0,0.00013201,2]
[424874951,1781224232000,-452.0,0.00013201,2]
[424874953,1781224232000,-451.0,0.00013201,2]
[424874950,1781224232000,-445.0,0.00013201,2]
[424874958,1781224232000,-442.0,0.00013201,2]
[424874956,1781224232000,-551.0,0.00013201,2]
[424874959,1781224232000,-457.0,0.00013202,2]
[424874954,1781224232000,-455.0,0.00013201,2]
[424874962,1781224232000,-442.0,0.00013202,2]
[424874964,1781224232000,-160.0,0.00013204,2]
[424874974,1781224232000,-455.0,0.00013232,2]
[424874976,1781224232000,-450.0,0.00013232,2]
[424874965,1781224232000,-455.0,0.00013204,2]
[424874977,1781224232000,-445.0,0.00013232,2]
[424874966,1781224232000,-451.0,0.00013204,2]
[424874973,1781224232000,-452.0,0.00013216,2]
[424875021,1781224232000,-457.0,0.00013878,2]
[424875022,1781224232000,-456.0,0.00013878,2]
[424874967,1781224232000,-441.0,0.00013204,2]
[424875010,1781224232000,-448.0,0.00013617,2]
[424875040,1781224232000,-200.0,0.00014043,2]
[424875048,1781224232000,-340.95,0.00014097,2]
[424875050,1781224232000,-166.66,0.00014163,2]
[424875053,1781224232000,-200.0,0.00014303,2]
[424875052,1781224232000,-150.0,0.00014273,2]
[424875054,1781224232000,-301.44,0.00014334,2]
[424875056,1781224232000,-458.0,0.00014347,2]
[424875055,1781224232000,-441.0,0.00014347,2]
[424875060,1781224232000,-2302.88,0.00014459,2]
[424875062,1781224232000,-301.44,0.00014589,2]
[424875049,1781224232000,-301.44,0.00014126,2]
[424875061,1781224232000,-301.44,0.0001451,2]
[424875059,1781224232000,-166.66,0.00014443,2]
[424875063,1781224232000,-166.08,0.00014685,2]
[424875066,1781224232000,-2302.88,0.00014821,2]
[424875068,1781224232000,-500.0,0.00014999,2]
[424875065,1781224232000,-320.0,0.00014795,2]
[424875064,1781224232000,-166.66,0.00014724,2]
[424875069,1781224232000,-500.0,0.00014999,2]
[424875067,1781224232000,-500.0,0.00014999,2]
[424875070,1781224232000,-315.41544434,0.00014999,2]
[424875023,1781224232000,-449.0,0.00013878,2]
[424875057,1781224232000,-1947.22,0.00014382,2]
[424875042,1781224232000,-200.0,0.00014043,2]
[424875058,1781224232000,-301.44,0.00014425,2]
[424875046,1781224232000,-454.0,0.00014075,2]
[424875045,1781224232000,-399.55333469,0.00014074,2]
[424875013,1781224232000,-453.0,0.00013728,2]
[424875019,1781224232000,-1000.0,0.00013871,2]
[424875026,1781224232000,-250.0,0.00014,2]
[424875025,1781224232000,-223.0,0.00013918,2]
[424875027,1781224232000,-301.44,0.00014002,2]
[424875037,1781224232000,-600.0,0.00014043,2]
[424875030,1781224232000,-2500.0,0.00014043,2]
[424875031,1781224232000,-2500.0,0.00014043,2]
[424875032,1781224232000,-2500.0,0.00014043,2]
[424875029,1781224232000,-150.0,0.0001401,2]
[424875035,1781224232000,-600.0,0.00014043,2]
[424875038,1781224232000,-600.0,0.00014043,2]
[424875036,1781224232000,-600.0,0.00014043,2]
[424875034,1781224232000,-2500.0,0.00014043,2]
[424875028,1781224232000,-200.0,0.00014006,2]
[424875033,1781224232000,-2500.0,0.00014043,2]
[424875039,1781224232000,-600.0,0.00014043,2]